[Event "Marcel Invitational Chess-ch 2022"]
[Site "Dhaka"]
[Date "2022.04.19"]
[Round "1.1"]
[White "Mohammad Minhaz Uddin"]
[Black "Uddin, Saif"]
[Result "1-0"]
[ECO "B06"]
[WhiteElo "2267"]
[BlackElo "1943"]
[Annotator "TA"]
[PlyCount "79"]
[EventDate "2022.04.18"]
[EventCountry "BAN"]
[SourceTitle "playchess.com"]
[Source "ChessBase"]
[SourceQuality "1"]
[TimeControl "5400+30"]

{[%evp 9,79,15,42,42,45,34,48,51,52,43,51,26,55,54,65,69,85,56,90,70,55,67,75,68,76,87,116,75,66,54,87,69,76,73,95,87,95,70,89,72,95,99,104,109,199,186,188,198,156,177,159,154,233,235,477,464,462,408,403,403,436,441,414,432,378,183,574,561,1193,1208,29990,29991]} 1. e4 {[%emt 0:00:03]} d6 {[%emt 0:00:07]} 2. d4 {[%emt 0:00:03]} g6 {[%emt 0:00:09]} 3. Nc3 {[%emt 0:00:08]} Bg7 {[%emt 0:00:20]} 4. g3 {[%emt 0:04:50]} Nc6 {[%emt 0:01:46]} 5. d5 {[%emt 0:01:58]} Nb8 {[%emt 0:00:25]} 6. Nge2 {[%emt 0:00:54] B06: Modern Defence.} Nf6 {[%emt 0:02:01]} 7. Bg2 {[%emt 0:00:03]} c6 {[%emt 0:00:22]} 8. h3 {[%emt 0:01:59] White is slightly better.} O-O {[%emt 0:02:57]} 9. O-O {[%emt 0:00:04]} Qc7 {[%emt 0:02:13] [#]} 10. Bg5 $146 {[%emt 0:00:48]} ({Predecessor:} 10. Be3 Nbd7 11. b3 cxd5 12. exd5 a6 13. Qd2 Re8 14. a4 b6 15. Rad1 Bb7 16. Nb1 {1-0 (41) Hedke,F (2320)-Kauschmann,H (2220) Germany 1993}) 10... h6 {[%emt 0:01:56]} 11. Be3 {[%emt 0:00:25]} Kh7 {[%emt 0:01:32]} 12. Qd2 {[%emt 0:01:33]} Nbd7 {[%emt 0:00:12]} 13. b3 {[%emt 0:01:01]} cxd5 {[%emt 0:01:30]} 14. exd5 {[%emt 0:00:09]} a6 {[%emt 0:00:14]} 15. Nd4 {[%emt 0:07:53]} Nb6 {[%emt 0:10:18]} 16. a4 {[%emt 0:07:59][%cal Ba2a4,Ba4a5][%mdl 32]} Bd7 {[%emt 0:01:13]} 17. a5 {[%emt 0:00:40]} Nc8 {[%emt 0:05:56]} 18. Na4 {[%emt 0:02:17]} e5 {[%emt 0:00:46]} 19. Ne2 {[%emt 0:03:43]} Ng8 {[%emt 0:08:54]} 20. Ra2 {[%emt 0:02:11]} f5 {[%emt 0:00:35]} 21. f4 {[%emt 0:01:06]} e4 {[%emt 0:03:58]} 22. c4 {[%emt 0:01:02]} Nf6 {[%emt 0:02:53]} 23. Rc1 {[%emt 0:02:53]} Qd8 {[%emt 0:00:55]} 24. Qb4 {[%emt 0:02:54]} Rb8 {[%emt 0:00:41]} 25. Nb6 {[%emt 0:00:15]} Be8 {[%emt 0:00:44]} 26. Nd4 {[%emt 0:04:26]} Nxb6 {[%emt 0:03:40] [#]} (26... Rf7 $16) 27. Ne6 $1 $18 {[%emt 0:01:04]} (27. Qxb6 Qxb6 28. axb6 Bf7 $11) (27. axb6 Bf7 $11) 27... Nbxd5 {[%emt 0:00:31]} 28. cxd5 {[%emt 0:00:06]} Qe7 {[%emt 0:02:38]} (28... Nxd5 $2 29. Qd2 Qf6 30. Nxf8+ Qxf8 31. Qxd5 $18) 29. Rc7 $36 {[%emt 0:02:03][%mdl 2112] Skewer. Black is under strong pressure. 0x0.0017ad110bf2dp-1022s more active pieces. The black rooks are badly placed.} (29. Nxf8+ $6 Qxf8 30. Rd2 Bf7 $14) 29... Bd7 {[%emt 0:04:46]} 30. Nxf8+ {[%emt 0:00:22]} Bxf8 {[%emt 0:00:05] [#]} (30... Qxf8 $16 {was worth a try.} 31. Rd2 (31. Rxb7 Bb5 $11) 31... Bb5) 31. Rd2 $1 {[%emt 0:01:23] Threatens to win with Bf1.} ({And not} 31. Rxb7 Nxd5 32. Rxb8 Nxb4 33. Rxb4 d5 $11) 31... Bg7 $2 {[%emt 0:02:52]} (31... Qd8 32. Bb6 (32. Rxb7 Rxb7 33. Qxb7 Qxa5 $16) 32... h5) 32. Bf1 {[%emt 0:03:01]} g5 {[%emt 0:06:31]} 33. fxg5 {[%emt 0:04:21]} hxg5 {[%emt 0:00:14]} 34. Bxg5 {[%emt 0:00:19]} Kg6 {[%emt 0:00:56]} 35. h4 {[%emt 0:06:51][%cal Bh3h4,Bh4h5][%mdl 32]} Bh6 {[%emt 0:00:15]} 36. Bxf6 {[%emt 0:10:05]} Kxf6 {[%emt 0:00:04]} 37. Qd4+ {[%emt 0:00:25]} (37. Rf2 $142) 37... Kf7 $2 {[%emt 0:01:09]} (37... Qe5 {is a better chance.}) 38. Rf2 {[%emt 0:00:46] Bh3 is the strong threat.} Kg6 {[%emt 0:01:23]} 39. h5+ {[%emt 0:04:43]} Kg5 {[%emt 0:00:59]} 40. Qe3+ {[%emt 0:23:44] Weighted Error Value: White=0.12 (very precise) /Black=0.56} 1-0

[Event "Marcel Invitational Chess-ch 2022"]
[Site "Dhaka"]
[Date "2022.04.19"]
[Round "1.2"]
[White "Asif, Mahmud"]
[Black "Anata, Choudhury"]
[Result "0-1"]
[ECO "D38"]
[WhiteElo "1928"]
[BlackElo "2170"]
[Annotator "TA"]
[PlyCount "46"]
[EventDate "2022.04.18"]
[EventCountry "BAN"]
[SourceTitle "playchess.com"]
[Source "ChessBase"]
[SourceQuality "1"]
[TimeControl "5400+30"]

{[%evp 12,46,25,20,58,52,49,21,22,18,17,0,0,0,0,0,0,-111,-118,-114,-108,-138,-145,-181,-178,-188,-170,-314,-302,-317,-154,-756,-744,-1120,-967,-1631,-1406]} 1. d4 {[%emt 0:00:04]} Nf6 {[%emt 0:00:15]} 2. c4 {[%emt 0:00:12]} e6 {[%emt 0:00:11]} 3. Nf3 {[%emt 0:00:28]} d5 {[%emt 0:00:55]} 4. Nc3 {[%emt 0:00:31]} Bb4 {[%emt 0:00:18]} 5. Bg5 {[%emt 0:01:33]} h6 {[%emt 0:00:23]} 6. Bxf6 {[%emt 0:00:42]} Qxf6 {[%emt 0:00:10]} 7. Qb3 {[%emt 0:05:56]} Nc6 {[%emt 0:01:01] D38: Queen's Gambit Declined: Ragozin Defence (4 Nf3 Bb4).} 8. e3 {[%emt 0:02:15]} a5 {[%emt 0:25:24][%cal Ba7a5,Ba5a4][%mdl 32] [#]} 9. cxd5 $146 {[%emt 0:09:51]} ({Predecessor:} 9. a3 a4 10. Qc2 Bxc3+ 11. Qxc3 O-O 12. Be2 Re8 13. O-O dxc4 14. Qxc4 e5 15. d5 {½-½ (42) Girya,O (2440)-Gorbatov,A (2369) Moscow 2012}) 9... a4 $1 {[%emt 0:00:15][%mdl 64] Deflection. The position is equal.} 10. Qc2 {[%emt 0:07:55]} (10. Qc4 exd5 11. Qd3 (11. Qxd5 $2 a3 $19) 11... Bf5 $15) 10... exd5 {[%emt 0:00:44]} 11. a3 {[%emt 0:00:12]} Bxc3+ {[%emt 0:04:53]} 12. Qxc3 {[%emt 0:01:13]} O-O {[%emt 0:00:34][%cal Bh8f8,Bf8b8,Bb8b3][%mdl 32]} 13. Bb5 {[%emt 0:04:38]} Bg4 {[%emt 0:01:25]} 14. Bxc6 {[%emt 0:10:24]} (14. Nd2 $11) 14... Bxf3 $17 {[%emt 0:01:02]} ({Resist} 14... bxc6 15. Ne5 Bf5 16. Qxc6 $16 (16. Nxc6 Qg5 $14)) (14... Qxc6 15. Qxc6 bxc6 16. Ne5 $16) 15. gxf3 {[%emt 0:05:25]} bxc6 {[%emt 0:06:40][%cal Bb7c6,Bc6c5,Bc5c4,Bc4c3][%mdl 32]} ({Don't play} 15... Qxf3 $6 16. Bxd5 Qxd5 17. O-O-O $11) 16. f4 {[%emt 0:03:41]} Rfb8 {[%emt 0:00:45]} 17. O-O-O {[%emt 0:09:40]} Rb3 {[%emt 0:04:37]} 18. Qc5 {[%emt 0:01:17]} Rb5 {[%emt 0:00:47]} 19. Qc3 {[%emt 0:00:39] [#]} (19. Qc2 {only move.}) 19... Rab8 $1 $19 {[%emt 0:01:03][%cal Oc6c5] ...c5! is the strong threat.} 20. Rd2 {[%emt 0:00:17]} c5 $1 {[%emt 0:01:32] White must now prevent ...c4.} 21. Rg1 $2 {[%emt 0:03:00] [#]} (21. Kb1 $17) 21... c4 $1 {[%emt 0:01:12] And now ...Rb3 would win. Black is clearly winning.} 22. Rg3 {[%emt 0:03:17]} Rb3 {[%emt 0:06:41]} 23. Qa5 {[%emt 0:00:21]} c3 {[%emt 0:00:43] Weighted Error Value: White=0.97/Black=0.02 (flawless)} 0-1

[Event "Marcel Invitational Chess-ch 2022"]
[Site "Dhaka"]
[Date "2022.04.19"]
[Round "1.3"]
[White "Islam, Khandaker Aminul"]
[Black "Hossain, Delwar"]
[Result "1-0"]
[ECO "B00"]
[WhiteElo "2153"]
[BlackElo "1977"]
[Annotator "TA"]
[PlyCount "71"]
[EventDate "2022.04.18"]
[EventCountry "BAN"]
[SourceTitle "playchess.com"]
[Source "ChessBase"]
[SourceQuality "1"]
[TimeControl "5400+30"]

{[%evp 9,71,13,8,0,31,27,25,10,14,9,24,4,26,26,29,26,27,23,108,-5,49,44,52,0,28,17,16,13,243,241,235,225,285,306,301,283,300,295,279,283,282,225,309,268,295,295,266,265,358,333,333,333,433,433,468,465,446,451,457,455,903,893,878,841]} 1. d4 {[%emt 0:00:05]} e5 {[%emt 0:03:27]} 2. dxe5 {[%emt 0:00:06]} Nc6 {[%emt 0:00:32]} 3. e4 {[%emt 0:00:30]} Nxe5 {[%emt 0:00:13]} 4. f4 {[%emt 0:00:06]} Nc6 {[%emt 0:01:45]} 5. Nf3 {[%emt 0:00:19]} Bc5 {[%emt 0:00:44]} 6. Bc4 {[%emt 0:02:04][%cal Oc4f7] Hoping for Bxf7+! B00: Queen's Fianchetto Defence, Nimzowitsch Defence.} d6 {[%emt 0:00:16]} (6... Nf6 $5 {[%cal Rf6e4]}) 7. Nc3 {[%emt 0:01:20]} a6 {[%emt 0:03:22] [#]} 8. Qd3 $146 {[%emt 0:06:05] White has an edge.} (8. Qd5 $2 Be6 9. Qd3 Nb4 $19) ({Predecessor:} 8. Qe2 Bg4 9. Be3 Bxe3 10. Qxe3 Nge7 11. O-O O-O 12. Rad1 Bxf3 13. Qxf3 Kh8 14. e5 {1-0 (34) Ambartsumova,K (2382)-Christensen,T (2154) Chess.com INT 2021}) 8... Nf6 {[%emt 0:02:16]} 9. a3 $1 {[%emt 0:06:49]} O-O {[%emt 0:04:03]} 10. Be3 {[%emt 0:06:05]} Bxe3 {[%emt 0:03:39]} (10... b5 $5 {[%cal Rb5c4]} 11. Bd5 Nxd5 12. Nxd5 Ne7 $11) 11. Qxe3 {[%emt 0:00:06]} b5 {[%emt 0:01:23]} 12. Bb3 {[%emt 0:00:32]} Na5 {[%emt 0:02:32]} 13. Ba2 {[%emt 0:01:06]} Bb7 {[%emt 0:01:41]} (13... Be6 $11) 14. O-O {[%emt 0:00:50] &Bianco is more active.} (14. O-O-O $1 $16) 14... Qe7 {[%emt 0:02:32]} (14... c5 $11) 15. Rae1 $14 {[%emt 0:00:45]} c5 {[%emt 0:01:22]} 16. Qd2 {[%emt 0:01:31]} ({White should play} 16. e5 $14 Ng4 17. Qe2) 16... Qd8 {[%emt 0:02:34]} 17. e5 {[%emt 0:16:10]} dxe5 {[%emt 0:00:44]} 18. fxe5 {[%emt 0:08:23][%cal Bf4e5,Be5e6][%mdl 32]} Ng4 {[%emt 0:02:54] [#] Black cannot hold the game after this.} (18... Qxd2 $11 {and Black stays safe.} 19. Nxd2 Rad8) 19. Qxd8 $1 $18 {[%emt 0:01:58]} Rfxd8 {[%emt 0:00:42] [#]} 20. e6 $1 {[%emt 0:00:47]} c4 {[%emt 0:02:26]} 21. exf7+ {[%emt 0:00:22]} Kf8 {[%emt 0:01:42]} 22. Ng5 {[%emt 0:00:22][%cal Rg5h7]} Nf6 {[%emt 0:00:54]} 23. Ne6+ {[%emt 0:00:25]} Kxf7 {[%emt 0:00:43]} 24. Nxd8+ {[%emt 0:00:02]} Rxd8 {[%emt 0:00:24]} 25. Rd1 {[%emt 0:00:21]} Rb8 {[%emt 0:01:38]} 26. Bb1 {[%emt 0:00:47]} Kg8 {[%emt 0:00:17]} 27. Rfe1 {[%emt 0:03:15]} Kf8 {[%emt 0:00:56]} 28. Ne2 {[%emt 0:00:46]} c3 {[%emt 0:04:55]} 29. b3 {[%emt 0:01:38]} ({But not} 29. Nxc3 Nc4 30. Ba2 Nxb2 $18) 29... Rc8 {[%emt 0:00:27]} 30. Rd3 {[%emt 0:01:09]} Ne4 {[%emt 0:02:21]} 31. Ba2 {[%emt 0:01:51] White is clearly winning.} b4 {[%emt 0:03:18]} 32. axb4 {[%emt 0:00:31]} Nc6 {[%emt 0:00:07]} 33. Nxc3 {[%emt 0:01:01]} Nxb4 {[%emt 0:00:53]} 34. Nxe4 {[%emt 0:02:16]} Rxc2 {[%emt 0:01:53]} (34... Nxd3 $142 35. cxd3 Rc2) 35. Rf3+ {[%emt 0:01:12]} Kg8 {[%emt 0:01:24]} 36. Bb1 {[%emt 0:00:44] Weighted Error Value: White=0.14 (very precise) /Black=0.45} 1-0

[Event "Marcel Invitational Chess-ch 2022"]
[Site "Dhaka"]
[Date "2022.04.19"]
[Round "1.5"]
[White "Ahmed, Sheikh Nasir"]
[Black "Ahmed, Feroz"]
[Result "1-0"]
[ECO "B13"]
[WhiteElo "2168"]
[BlackElo "1901"]
[Annotator "TA"]
[PlyCount "33"]
[EventDate "2022.04.18"]
[EventCountry "BAN"]
[SourceTitle "playchess.com"]
[Source "ChessBase"]
[SourceQuality "1"]
[TimeControl "5400+30"]

{[%evp 15,32,18,31,2,282,261,350,300,373,356,492,235,305,292,293,321,1073,805,29999]} 1. e4 {[%emt 0:00:04]} d5 {[%emt 0:00:55]} 2. exd5 {[%emt 0:00:10]} Nf6 {[%emt 0:00:06]} 3. c4 {[%emt 0:00:21]} c6 {[%emt 0:01:01]} 4. d4 {[%emt 0:00:12][%cal Bd2d4,Bd4d5][%mdl 32]} cxd5 {[%emt 0:00:28]} 5. Nc3 {[%emt 0:00:08]} Nc6 {[%emt 0:05:11]} 6. Nf3 {[%emt 0:04:45]} Bg4 {[%emt 0:10:21]} 7. cxd5 {[%emt 0:00:07]} Nxd5 {[%emt 0:01:54]} 8. Qb3 {[%emt 0:00:04]} Nb6 {[%emt 0:13:07]} 9. d5 $1 {[%emt 0:01:56] 9.d5 is better than 9.Be3. B13: Caro-Kann: Exchange Variation and Panov-Botvinnik Attack.} Nb8 {[%emt 0:07:23][%mdl 8192] [#]} (9... Bxf3 $11 {and Black stays safe.} 10. gxf3 Nd4 11. Bb5+ Nd7) 10. Ne5 $146 {[%emt 0:08:45]} ({Predecessor:} 10. Be3 f6 11. a4 N8d7 12. Be2 g5 13. O-O Kf7 14. Nxg5+ fxg5 15. Bxg4 h5 16. Be6+ Kg6 17. Qc2+ Kh6 18. Qf5 {1-0 (18) Malygin,A (2194)-Rumyantsev,N (1910) Uljanovsk 2009}) 10... Bc8 {[%emt 0:03:14]} 11. Nb5 {[%emt 0:07:45][%cal Od5d6,Bc3b5,Bb5a7,Ba7c8,Bc8d6][%mdl 32] aiming for d6! White has a decisive advantage.} (11. d6 Be6 12. Bb5+ N8d7 13. Nxd7 Nxd7 $14) 11... Na6 {[%emt 0:12:24] [#]} (11... f6 $2 {[#]} 12. d6 $1 fxe5 13. Nc7+ Qxc7 14. dxc7 $18) 12. Nxa7 $1 {[%emt 0:22:22][%mdl 512]} Nc5 {[%emt 0:25:50]} (12... e6 13. Bb5+) 13. Qb5+ $40 {[%emt 0:11:24][%mdl 128] White attacks with force.} (13. Bb5+ $142 Nbd7 14. Qc4) 13... Nbd7 {[%emt 0:02:07]} 14. Nxc8 {[%emt 0:00:41]} Ra5 {[%emt 0:03:11]} 15. Qe2 {[%emt 0:02:06]} Nb3 $2 {[%emt 0:01:25] [#]} (15... Qxc8 16. Nc4 (16. b4 Nxe5 17. Qxe5 Nd7 $18) 16... Ra6) 16. Nc4 $1 {[%emt 0:09:59][%csl Gc8][%cal Rc4d6][%mdl 512]} Nxa1 {[%emt 0:02:58]} (16... e6 17. N8d6+) 17. N8d6# {[%emt 0:00:15] Black did not feel at home in the position after the opening.  Weighted Error Value: White=0.46/Black=1.62} 1-0

[Event "Marcel Invitational Chess-ch 2022"]
[Site "Dhaka"]
[Date "2022.04.19"]
[Round "1.6"]
[White "Nurul, Islam Emon"]
[Black "Manon, Reja Neer"]
[Result "0-1"]
[ECO "E97"]
[WhiteElo "1821"]
[BlackElo "2209"]
[Annotator "TA"]
[PlyCount "70"]
[EventDate "2022.04.18"]
[EventCountry "BAN"]
[SourceTitle "playchess.com"]
[Source "ChessBase"]
[SourceQuality "1"]
[TimeControl "5400+30"]

{[%evp 23,70,-35,-23,-53,-59,-58,-58,-58,-64,-68,-68,-95,-81,-100,-107,-116,-117,-158,-158,-163,-154,-157,-179,-233,-233,-235,-235,-217,-218,-226,-178,-261,-255,-254,-251,-280,-262,-275,-271,-327,-308,-415,-386,-404,-395,-538,-495,-699,-560]} 1. d4 {[%emt 0:03:58]} Nf6 {[%emt 0:00:07]} 2. Nf3 {[%emt 0:00:08]} g6 {[%emt 0:00:06]} 3. c4 {[%emt 0:00:14]} Bg7 {[%emt 0:00:06]} 4. Nc3 {[%emt 0:00:08]} d6 {[%emt 0:00:06]} 5. e4 {[%emt 0:00:43]} O-O {[%emt 0:00:07]} 6. Be2 {[%emt 0:02:47]} e5 {[%emt 0:03:42]} 7. O-O {[%emt 0:14:42]} Nc6 {[%emt 0:03:14]} 8. dxe5 {[%emt 0:04:45]} dxe5 {[%emt 0:00:52]} 9. Bg5 {[%emt 0:05:53]} Qxd1 {[%emt 0:03:24]} 10. Raxd1 {[%emt 0:03:09]} Bg4 {[%emt 0:01:50]} 11. Bxf6 {[%emt 0:05:12]} Bxf6 {[%emt 0:00:23][%cal Bg7f6,Bf6d8,Bd8e7][%mdl 32]} 12. Nd5 {[%emt 0:11:30]} Bd8 {[%emt 0:00:01]} 13. h3 {[%emt 0:02:44] E97: King's Indian: Classical Main Line (6...e5 7 0-0 Nc6): 8 Be3 and 8 d5 Ne7, not 9 Ne1.} Bxf3 {[%emt 0:00:08]} 14. Bxf3 {[%emt 0:00:02]} Nd4 {[%emt 0:00:01]} 15. Rd3 {[%emt 0:01:02] Black is slightly better.} c6 {[%emt 0:00:27] [#]} 16. Ne3 $146 {[%emt 0:00:54]} ({Predecessor:} 16. Nc3 Bg5 17. Ne2 Ne6 18. Rd6 Rfd8 19. Rfd1 Kf8 20. b4 Rxd6 21. Rxd6 Ke7 22. c5 {0-1 (41) Babu Odiah,I-L'Ami,A (2345) Dar es Salaam 2013}) 16... Be7 {[%emt 0:04:21]} 17. Bd1 {[%emt 0:03:57]} Rfd8 {[%emt 0:00:35][%cal Od4f3] [#] ...Nf3+! is the strong threat. &Nero is more active.} 18. Ng4 {[%emt 0:02:11]} f6 {[%emt 0:01:15]} 19. a3 {[%emt 0:06:08]} Ne6 {[%emt 0:01:49]} 20. Rc3 {[%emt 0:05:49]} Rd2 {[%emt 0:01:22]} 21. b4 {[%emt 0:02:16]} a5 {[%emt 0:04:17]} 22. c5 {[%emt 0:01:31]} Nd4 {[%emt 0:03:00]} 23. Kh2 {[%emt 0:12:33]} (23. Ne3 {is a better defense.}) 23... axb4 $19 {[%emt 0:10:24]} 24. axb4 {[%emt 0:00:02]} Ra1 {[%emt 0:01:14]} 25. Ne3 {[%emt 0:03:05]} Rb1 {[%emt 0:00:31]} 26. Rc4 {[%emt 0:05:48]} Kg7 {[%emt 0:01:35]} 27. g3 {[%emt 0:01:19]} (27. Kg1 $142) 27... Rdb2 {[%emt 0:01:06][%cal Bd2b2,Bb2b4,Bb4b5,Bb5c5,Bc5c1,Bc1c3][%mdl 32]} 28. Kg2 {[%emt 0:01:14]} Rxb4 {[%emt 0:00:20]} 29. Rc3 {[%emt 0:00:41]} Rb5 {[%emt 0:00:57]} 30. Ba4 {[%emt 0:00:29]} Rxf1 {[%emt 0:00:45]} ({Stronger than} 30... Rxc5 31. Rxb1 Rxc3 32. Rxb7 $15) 31. Nxf1 {[%emt 0:00:33]} Rxc5 {[%emt 0:00:05]} 32. Rd3 {[%emt 0:00:25]} b5 {[%emt 0:00:07][%cal Bb7b5,Bb5b4][%mdl 32]} 33. Bd1 {[%emt 0:00:15]} Rc1 {[%emt 0:00:17] [#] aiming for ...c5.} 34. Bg4 {[%emt 0:00:15]} b4 {[%emt 0:00:15] Strongly threatening ...b3.} 35. Nd2 {[%emt 0:00:49] Prevents b3.} (35. Rd1 $142 Rxd1 36. Bxd1) 35... Rc3 {[%emt 0:00:33] White got outplayed after the opening.  Weighted Error Value: White=0.40/Black=0.05 (flawless)} 0-1

[Event "Marcel Invitational Chess-ch 2022"]
[Site "Dhaka"]
[Date "2022.04.20"]
[Round "2.1"]
[White "Masum, Hossain"]
[Black "Mohammad Minhaz Uddin"]
[Result "1-0"]
[ECO "A87"]
[WhiteElo "2003"]
[BlackElo "2267"]
[Annotator "TA"]
[PlyCount "68"]
[EventDate "2022.04.18"]
[EventCountry "BAN"]
[SourceTitle "playchess.com"]
[Source "ChessBase"]
[SourceQuality "1"]
[TimeControl "5400+30"]

{[%evp 17,68,44,29,-46,-46,-55,-42,-39,-27,-33,-25,-45,0,0,8,17,29,0,0,0,22,0,0,0,19,13,8,9,0,0,0,13,22,20,40,35,33,35,125,61,78,51,125,139,132,131,192,23,126,134,125,14,77]} 1. Nf3 {[%emt 0:01:07]} f5 {[%emt 0:00:03]} 2. c4 {[%emt 0:00:32]} Nf6 {[%emt 0:00:02]} 3. Nc3 {[%emt 0:00:01]} g6 {[%emt 0:00:43]} 4. g3 {[%emt 0:00:17]} Bg7 {[%emt 0:00:02]} 5. Bg2 {[%emt 0:00:01]} O-O {[%emt 0:00:02]} 6. O-O {[%emt 0:00:13]} d6 {[%emt 0:00:02][%cal Bd7d6,Bd6e5,Be5e4][%mdl 32]} 7. d4 {[%emt 0:03:18]} Qe8 {[%emt 0:00:04]} 8. b3 {[%emt 0:01:23]} e5 {[%emt 0:01:27]} 9. dxe5 {[%emt 0:00:28]} dxe5 {[%emt 0:00:02]} 10. e3 {[%emt 0:00:01] A87: Dutch Defence: Leningrad System: 5 Nf3.} (10. e4 $11) 10... e4 $15 {[%emt 0:01:44]} 11. Nd4 {[%emt 0:00:02] [#]} Rf7 $146 {[%emt 0:08:39]} ({Predecessor:} 11... Qe7 12. Qc2 c5 13. Nde2 Nc6 14. a3 Be6 15. Bb2 Rad8 16. Rad1 Bf7 17. Rxd8 Rxd8 {1-0 (56) Hiby,H (1796)-Schaefer,M (1938) Ostseebad Binz 2019}) 12. Bb2 {[%emt 0:00:06] Black is slightly better.} Nbd7 {[%emt 0:06:01]} 13. Qc2 {[%emt 0:00:38]} Ne5 {[%emt 0:00:43]} 14. Rad1 {[%emt 0:00:09]} a6 {[%emt 0:10:22]} 15. Rd2 {[%emt 0:01:56]} c5 {[%emt 0:13:50]} 16. Nde2 {[%emt 1:28:18]} g5 {[%emt 0:05:40]} 17. Rfd1 {[%emt 0:03:14]} Bd7 {[%emt 0:07:20]} 18. Nd5 {[%emt 0:04:08]} Bc6 {[%emt 0:13:16]} 19. Bxe5 {[%emt 0:02:21]} Qxe5 {[%emt 0:00:03]} 20. Nec3 {[%emt 0:14:22]} Re8 {[%emt 0:13:42]} 21. Nxf6+ {[%emt 0:00:30]} Bxf6 {[%emt 0:04:03]} 22. Nd5 {[%emt 0:00:14]} Bg7 {[%emt 0:00:11]} 23. b4 {[%emt 0:04:30]} Bf8 {[%emt 0:13:59]} 24. a3 {[%emt 0:03:22]} Kg7 {[%emt 0:00:15]} 25. Qb3 {[%emt 0:00:35]} Rd8 {[%emt 0:06:18]} 26. b5 {[%emt 0:02:43]} axb5 {[%emt 0:00:06]} 27. cxb5 {[%emt 0:00:06]} Be8 {[%emt 0:03:48] [#]} (27... c4 $14 28. Qxc4 Be8) 28. Nb6 {[%emt 0:20:17] &Bianco is more active.} (28. Nf6 $1 $16 {[%mdl 512]}) 28... Rxd2 $14 {[%emt 0:00:08]} 29. Rxd2 {[%emt 0:00:01]} c4 {[%emt 0:01:26]} ({Better is} 29... Qf6 $14 30. Nd5 Qa1+ 31. Bf1 (31. Rd1 c4 $15) 31... Rd7) 30. Nxc4 $16 {[%emt 0:00:21]} Qxb5 {[%emt 0:00:03]} 31. Qc3+ {[%emt 0:02:29]} Kg8 {[%emt 0:00:01]} (31... Rf6 $16) 32. Rd8 $2 {[%emt 0:00:53]} (32. Nd6 $1 $18 {[%cal Rd6b5]} Qc6 33. Qxc6 Bxc6 34. Nxf7 Kxf7 35. Ra2) 32... Bg7 {[%emt 0:01:10]} (32... Rd7 $1 $11 {keeps the balance.} 33. Rxe8 Rd1+ 34. Bf1 Rxf1+ 35. Kxf1 Qxe8) 33. Qc2 $1 {[%emt 0:13:06] Black must now prevent Nd6.} Qc6 {[%emt 0:00:02]} 34. g4 {[%emt 0:03:38]} (34. Qb3 $1 $16 {Nd6 is the strong threat.} Bf6 35. Rxe8+ $1 Qxe8 36. Nd6) 34... Rf8 {[%emt 0:01:47] Weighted Error Value: White=0.35/Black=0.25 (precise)} ({But not} 34... b5 {[#]} 35. Rxe8+ $1 {[%mdl 512]} Qxe8 36. Nd6 $16) (34... Rc7 $1 $11 {remains equal.} 35. Qb3 (35. gxf5 Kf8 $11) 35... Qxc4 36. Qxc4+ Rxc4 37. Rxe8+ Kf7) 1-0